bitfinex/quotes_BTCUSD_20241116
["timestamp","ask_amount","ask_price","bid_price","bid_amount"]
[1731783066440,0.10906255,91286.0,91281.0,0.10955]
[1731783066640,0.10906255,91286.0,91280.0,0.1112666]
[1731783066865,0.21860855,91286.0,91280.0,0.1112666]
[1731783067298,0.109548,91284.0,91280.0,0.0017146]
[1731783067746,0.10906255,91286.0,91280.0,0.0017146]
[1731783068391,0.21860855,91286.0,91281.0,0.109551]
[1731783068650,0.10785655,91286.0,91280.0,0.0017146]
[1731783068859,0.10785655,91286.0,91284.0,0.109547]
[1731783069084,0.10785655,91286.0,91282.0,0.109549]
[1731783069778,0.10785655,91286.0,91281.0,0.219102]
[1731783069986,0.0499,91294.0,91280.0,0.0017146]
[1731783069987,0.0784,91301.0,91284.0,0.11187395]
[1731783070237,0.16495752,91299.0,91293.0,0.109536]
[1731783070467,0.16495752,91299.0,91287.0,0.109544]
[1731783070468,0.109536,91294.0,91287.0,0.109544]
[1731783070684,0.109536,91294.0,91284.0,0.219096]
[1731783070922,0.109537,91294.0,91287.0,0.109543]
[1731783071162,0.10906255,91298.0,91284.0,0.219096]
[1731783071386,0.109536,91294.0,91288.0,0.109542]
[1731783071837,0.109536,91294.0,91289.0,0.109541]
[1731783072110,0.219065,91297.0,91289.0,0.109541]
[1731783072355,0.04428493,91305.0,91280.0,0.0789146]
[1731783072356,0.1283,91317.0,91296.0,0.11187395]
[1731783072591,0.1283,91317.0,91298.0,0.219062]
[1731783072592,0.16495752,91310.0,91298.0,0.219062]
[1731783072823,0.16495752,91310.0,91296.0,0.11187395]
[1731783072824,0.10906255,91309.0,91308.0,0.109519]
[1731783073032,0.10906255,91309.0,91296.0,0.11187395]
[1731783073033,0.1283,91317.0,91301.0,0.00219021]
[1731783073246,0.16495752,91314.0,91313.0,0.109513]
[1731783073459,0.27402007,91314.0,91313.0,0.109513]
[1731783073666,0.10906255,91314.0,91313.0,0.109513]
[1731783074190,0.0008573,91322.0,91317.0,0.109508]
[1731783074392,0.10991955,91318.0,91317.0,0.109508]
[1731783075489,0.000857,91318.0,91317.0,0.11169805]
[1731783075703,0.000857,91318.0,91317.0,0.11669805]
[1731783075942,0.000857,91318.0,91317.0,0.12169805]
[1731783076177,0.000857,91318.0,91317.0,0.119508]
[1731783076384,0.000857,91318.0,91317.0,0.114508]
[1731783077570,0.000857,91318.0,91317.0,0.109508]
[1731783077809,0.000857,91318.0,91314.0,0.109511]
[1731783077810,0.10991955,91318.0,91314.0,0.109511]
[1731783078025,0.023,91317.0,91315.0,0.10951]
[1731783079333,0.023,91317.0,91310.0,0.005]
[1731783079554,0.023,91317.0,91315.0,0.109509]
[1731783079805,0.023,91317.0,91316.0,0.109509]
[1731783083259,0.000857,91318.0,91317.0,0.109508]
[1731783083489,0.000857,91318.0,91317.0,0.11169775]
[1731783086716,0.000857,91318.0,91317.0,0.109508]
[1731783090454,0.000857,91318.0,91317.0,0.11169791]
[1731783090927,0.000857,91318.0,91313.0,0.109512]
[1731783091160,0.110364,91318.0,91313.0,0.109512]
[1731783091403,0.000857,91318.0,91308.0,0.219036]
[1731783091633,0.10991955,91318.0,91308.0,0.219036]
[1731783091851,0.10991955,91318.0,91316.0,0.109508]
[1731783092055,0.10991955,91318.0,91317.0,0.109508]
[1731783092529,0.000857,91318.0,91317.0,0.109508]
[1731783092966,0.000857,91318.0,91315.0,0.10951]
[1731783093182,0.109512,91314.0,91307.0,0.109519]
[1731783093395,0.109512,91314.0,91309.0,0.109517]
[1731783093870,0.10951,91316.0,91310.0,0.109515]
[1731783094298,0.10951,91316.0,91310.0,0.109516]
[1731783094760,0.10951,91316.0,91305.0,0.438092]
[1731783094761,0.219017,91317.0,91305.0,0.219046]
[1731783094972,0.219017,91317.0,91309.0,0.109517]
[1731783094973,0.109511,91315.0,91309.0,0.109517]
[1731783095193,0.109511,91315.0,91307.0,0.219041]
[1731783095414,0.109511,91315.0,91310.0,0.109516]
[1731783095630,0.18731955,91318.0,91313.0,0.109513]
[1731783096051,0.29682655,91318.0,91313.0,0.109513]
[1731783096267,0.18731955,91318.0,91304.0,0.005]
[1731783096476,0.18731955,91318.0,91310.0,0.328551]
[1731783096678,0.29682655,91318.0,91312.0,0.109513]
[1731783096900,0.109509,91317.0,91312.0,0.109513]
[1731783097108,0.10951,91316.0,91309.0,0.109517]
[1731783097321,0.10951,91316.0,91311.0,0.109515]
[1731783097580,0.18731955,91318.0,91312.0,0.109514]
[1731783097827,0.10951,91316.0,91311.0,0.109515]
[1731783098032,0.10451,91316.0,91311.0,0.109515]
[1731783098285,0.10451,91316.0,91309.0,0.219036]
[1731783098286,0.10451,91316.0,91309.0,0.109517]
[1731783098521,0.18731955,91318.0,91304.0,0.005]
[1731783098726,0.219017,91317.0,91305.0,0.219046]
[1731783099152,0.109513,91313.0,91308.0,0.109518]
[1731783099427,0.18731955,91318.0,91297.0,0.005]
[1731783099629,0.109518,91309.0,91304.0,0.109523]
[1731783099861,0.109518,91309.0,91294.0,0.0815]
[1731783099862,0.10906255,91309.0,91294.0,0.0815]
[1731783100055,0.109532,91298.0,91291.0,0.328618]
[1731783100264,0.109526,91303.0,91298.0,0.109531]
[1731783100475,0.10906255,91302.0,91295.0,0.005]
[1731783100706,0.109528,91301.0,91296.0,0.109533]
[1731783100919,0.10953,91299.0,91295.0,0.005]
[1731783101358,0.21859155,91300.0,91295.0,0.114534]
[1731783101569,0.10953,91299.0,91293.0,0.109536]
[1731783101824,0.21859155,91300.0,91290.0,0.219082]
[1731783102047,0.21859155,91300.0,91291.0,0.219079]
[1731783102483,0.21859155,91300.0,91294.0,0.109536]
[1731783104496,0.21859155,91300.0,91295.0,0.109534]
[1731783105613,0.21859155,91300.0,91295.0,0.114534]
[1731783106043,0.21859155,91300.0,91295.0,0.109534]
[1731783106937,0.10953,91299.0,91294.0,0.109535]
[1731783107391,0.21906,91299.0,91290.0,0.219082]
[1731783107607,0.10906255,91300.0,91290.0,0.219082]
[1731783107608,0.109536,91295.0,91290.0,0.10954]
[1731783108042,0.109532,91297.0,91291.0,0.109539]
[1731783108472,0.109532,91297.0,91292.0,0.109538]
[1731783108703,0.10953,91299.0,91293.0,0.109537]
[1731783108948,0.109531,91298.0,91293.0,0.109537]
[1731783109790,0.10906255,91297.0,91286.0,0.2258054]
[1731783110021,0.109541,91290.0,91286.0,0.0017154]
[1731783110256,0.21860355,91290.0,91286.0,0.0017154]
[1731783110691,0.10906255,91290.0,91286.0,0.2208064]
[1731783110933,0.10906255,91290.0,91286.0,0.0017154]
[1731783111106,0.10906255,91290.0,91286.0,0.1112604]
[1731783111352,0.10906255,91290.0,91287.0,0.109544]
[1731783111588,0.21860355,91290.0,91286.0,0.0017154]
[1731783111806,0.10906255,91290.0,91286.0,0.0017154]
[1731783112666,0.10906255,91290.0,91286.0,0.1112594]
[1731783113623,0.10906255,91290.0,91286.0,0.0017154]
[1731783113827,0.10906255,91290.0,91288.0,0.109543]
[1731783115345,0.10906255,91290.0,91286.0,0.2208054]
[1731783115554,0.10906255,91290.0,91289.0,0.1112564]
[1731783116219,0.023,91305.0,91290.0,0.219082]
[1731783116427,0.16495752,91301.0,91300.0,0.109529]
[1731783116652,0.27402007,91301.0,91300.0,0.109529]
[1731783116867,0.16495752,91311.0,91298.0,0.21906]
[1731783117088,0.16495752,91311.0,91292.0,0.005]
[1731783117089,0.27402007,91311.0,91310.0,0.109517]
[1731783117546,0.10906255,91311.0,91310.0,0.109517]
[1731783118877,0.000857,91318.0,91317.0,0.109508]
[1731783119086,0.13291955,91318.0,91317.0,0.109508]
[1731783120601,0.10991955,91318.0,91317.0,0.109508]
[1731783123692,0.10991955,91318.0,91306.0,0.0824]
[1731783123905,0.10991955,91318.0,91315.0,0.10951]
[1731783124120,0.10991955,91318.0,91312.0,0.219029]
[1731783124350,0.10991955,91318.0,91316.0,0.109508]
[1731783124565,0.10991955,91318.0,91303.0,0.26398376]
[1731783124770,0.10991955,91318.0,91300.0,0.06264423]
[1731783124980,0.10991955,91318.0,91317.0,0.109508]
[1731783125182,0.10991955,91318.0,91312.0,0.109514]
[1731783125392,0.10991955,91318.0,91312.0,0.219029]
[1731783125644,0.10991955,91318.0,91311.0,0.219031]
[1731783125645,0.10991955,91318.0,91315.0,0.10951]
[1731783125849,0.10991955,91318.0,91313.0,0.109513]
[1731783126915,0.10991955,91318.0,91314.0,0.109511]
[1731783127147,0.10991955,91318.0,91315.0,0.10951]
[1731783127382,0.10991955,91318.0,91313.0,0.109512]
[1731783127591,0.10991955,91318.0,91303.0,0.21905]
[1731783127828,0.10991955,91318.0,91310.0,0.219032]
[1731783128055,0.10991955,91318.0,91316.0,0.109509]
[1731783129885,0.10991955,91318.0,91310.0,0.219033]
[1731783130087,0.10991955,91318.0,91301.0,0.109527]
[1731783130308,0.10991955,91318.0,91315.0,0.10951]
[1731783131362,0.10991955,91318.0,91312.0,0.219026]
[1731783131593,0.21942655,91318.0,91310.0,0.219034]
[1731783131806,0.10991955,91318.0,91315.0,0.10951]
[1731783132250,0.10991955,91318.0,91313.0,0.109512]
[1731783132456,0.00493599,91317.0,91314.0,0.109511]
[1731783132895,0.00493599,91317.0,91315.0,0.10951]
[1731783134005,0.10991955,91318.0,91317.0,0.109508]
[1731783135118,0.10991955,91318.0,91313.0,0.219025]
[1731783135331,0.10991955,91318.0,91315.0,0.0017148]
[1731783136022,0.00505034,91317.0,91315.0,0.0017148]
[1731783136245,0.00505034,91317.0,91315.0,0.1112248]
[1731783136662,0.00505034,91317.0,91315.0,0.0017148]
[1731783137354,0.00505034,91317.0,91315.0,0.1112248]
[1731783139268,0.00505034,91317.0,91316.0,0.109509]
[1731783143761,0.00505034,91317.0,91316.0,0.109509]
[1731783144453,0.10991955,91318.0,91317.0,0.109508]
[1731783144915,0.11496534,91318.0,91317.0,0.109508]
[1731783146698,0.00590279,91318.0,91317.0,0.109508]
[1731783146904,0.00590279,91318.0,91317.0,0.19299787]
[1731783147124,0.000857,91318.0,91317.0,0.19299787]
[1731783149568,0.0008573,91322.0,91321.0,0.109503]
[1731783157995,0.0008573,91322.0,91321.0,0.11169266]
[1731783158624,0.0008573,91322.0,91321.0,0.00218966]
[1731783158826,0.0008573,91322.0,91321.0,0.109503]
[1731783167471,0.5008573,91322.0,91321.0,0.109503]
[1731783167908,0.50600721,91322.0,91321.0,0.109503]
[1731783179357,0.5008573,91322.0,91321.0,0.109503]
[1731783183447,0.5008573,91322.0,91321.0,0.1112178]
[1731783190024,0.6882593,91322.0,91321.0,0.0017148]
[1731783193632,0.5787573,91322.0,91321.0,0.0017148]
[1731783195647,1.19709957,91322.0,91321.0,0.0017148]
[1731783195887,0.95873195,91322.0,91321.0,0.0017148]
[1731783196610,1.65129592,91322.0,91321.0,0.0017148]
[1731783196840,1.57089647,91322.0,91321.0,0.0017148]
[1731783197060,1.31492202,91322.0,91321.0,0.0017148]
[1731783197517,1.24151192,91322.0,91321.0,0.0017148]
[1731783197741,1.43821442,91322.0,91321.0,0.0017148]
[1731783197953,1.21351192,91322.0,91321.0,0.0017148]
[1731783198189,0.5008573,91322.0,91321.0,0.0017148]
[1731783198436,0.5008573,91322.0,91321.0,0.1112178]
[1731783206859,0.5008573,91322.0,91321.0,0.1846279]
[1731783208796,0.5008573,91322.0,91321.0,0.0017148]
[1731783212410,0.6103593,91322.0,91321.0,0.0017148]
[1731783213473,0.6103593,91322.0,91320.0,0.5]
[1731783213474,0.6103593,91322.0,91320.0,0.2900401]
[1731783214630,0.5008573,91322.0,91320.0,0.2900401]
[1731783215808,0.5008573,91322.0,91321.0,0.109503]
[1731783216715,0.5008573,91322.0,91321.0,0.11169292]
[1731783216956,0.5008573,91322.0,91321.0,0.185603]
[1731783222484,0.5008573,91322.0,91321.0,0.18779277]
[1731783224050,0.5008573,91322.0,91321.0,0.29685532]
[1731783224308,0.5008573,91322.0,91321.0,0.29466555]
[1731783226470,0.47623577,91322.0,91321.0,0.29466555]
[1731783230882,0.47623577,91322.0,91321.0,0.34448095]
[1731783231091,0.47709347,91322.0,91321.0,0.34448095]
[1731783231707,0.4536325,91322.0,91321.0,0.34448095]
[1731783231927,0.4536325,91322.0,91321.0,0.54067277]
[1731783232146,0.4536325,91322.0,91321.0,0.36748095]
[1731783234571,0.4536325,91322.0,91321.0,0.44289105]
[1731783235414,0.4536325,91322.0,91321.0,0.54044708]
[1731783235619,0.4536325,91322.0,91321.0,0.53844708]
[1731783236043,0.4536325,91322.0,91321.0,0.51544603]
[1731783236473,0.4536325,91322.0,91321.0,0.41789105]
[1731783236682,0.4536325,91322.0,91321.0,0.34448095]
[1731783236915,0.4536325,91322.0,91321.0,0.41789105]
[1731783238076,0.4536325,91322.0,91321.0,0.51430115]
[1731783238352,0.4536325,91322.0,91321.0,0.44089105]
[1731783238775,0.4536325,91322.0,91321.0,0.44289105]
[1731783239637,0.4536325,91322.0,91321.0,0.54044603]
[1731783241209,0.44977422,91322.0,91321.0,0.54044603]
[1731783241418,0.42515635,91322.0,91321.0,0.54044603]
[1731783241619,0.42515635,91322.0,91321.0,0.44289105]
[1731783242055,0.42515635,91322.0,91321.0,0.54044603]
[1731783242264,0.42515635,91322.0,91321.0,0.54040624]
[1731783243220,0.42515635,91322.0,91321.0,0.44289105]
[1731783244007,0.42515635,91322.0,91321.0,0.44201891]
[1731783244211,0.42515635,91322.0,91321.0,0.41789105]
[1731783245957,0.42515635,91322.0,91321.0,0.51742901]
[1731783246169,0.42515635,91322.0,91321.0,0.51743752]
[1731783246385,0.42515635,91322.0,91321.0,0.54043752]
[1731783246588,0.42515635,91322.0,91321.0,0.44289105]
[1731783247852,0.42515635,91322.0,91321.0,0.48665505]
[1731783248297,0.42515635,91322.0,91321.0,0.58418533]
[1731783248495,0.42515635,91322.0,91321.0,0.48665505]
[1731783248706,0.41197938,91322.0,91321.0,0.58418218]
[1731783248918,0.41197938,91322.0,91321.0,0.5841838]
[1731783249131,0.41197938,91322.0,91321.0,0.48665505]
[1731783249566,0.41197938,91322.0,91321.0,0.38824495]
[1731783249773,0.41197938,91322.0,91321.0,0.36979105]
[1731783251825,0.41197938,91322.0,91321.0,0.29369105]
[1731783253634,0.41197938,91322.0,91321.0,0.22028095]
[1731783253837,0.49367938,91322.0,91321.0,0.1112184]
[1731783254306,0.49876111,91322.0,91321.0,0.1112184]
[1731783261312,0.41706111,91322.0,91321.0,0.1112184]
[1731783267510,0.46346111,91322.0,91321.0,0.1112184]
[1731783269057,0.53956111,91322.0,91321.0,0.1112184]
[1731783273121,0.41706111,91322.0,91321.0,0.1112184]
[1731783275076,0.41706111,91322.0,91321.0,0.4012585]
[1731783277670,0.41706111,91322.0,91321.0,0.07224063]
[1731783277876,0.41706111,91322.0,91321.0,0.18174363]
[1731783278326,0.41706111,91322.0,91321.0,0.18345903]
[1731783281476,0.46326111,91322.0,91321.0,0.18345903]
[1731783281687,0.54176111,91322.0,91321.0,0.18345903]
[1731783287922,0.41706111,91322.0,91321.0,0.18345903]
[1731783288333,0.39243813,91322.0,91321.0,0.18345903]
[1731783290315,0.39243813,91322.0,91319.0,0.26063167]
[1731783290532,0.39243813,91322.0,91321.0,0.0734101]
[1731783291171,0.39243813,91322.0,91321.0,0.1829131]
[1731783293367,0.39243813,91322.0,91321.0,0.29197565]
[1731783294051,0.39243813,91322.0,91321.0,0.18247265]
[1731783294272,0.39243813,91322.0,91321.0,0.29197565]
[1731783294685,0.39243813,91322.0,91321.0,0.37507565]
[1731783295180,0.30483413,91322.0,91321.0,0.44848575]
[1731783295411,0.27686536,91322.0,91321.0,0.59491637]
[1731783295640,0.27686536,91322.0,91321.0,0.44848575]
[1731783296821,0.27686536,91322.0,91321.0,0.30166555]
[1731783297036,0.27686536,91322.0,91321.0,0.41342298]
[1731783298768,0.27686536,91322.0,91321.0,0.55990221]
[1731783299423,0.27686536,91322.0,91321.0,0.41342298]
[1731783299666,0.27686536,91322.0,91321.0,0.55988813]
[1731783299838,0.27686536,91322.0,91321.0,0.58196955]
[1731783300519,0.27686536,91322.0,91321.0,0.32374697]
[1731783300723,0.27686536,91322.0,91321.0,0.4355044]
[1731783301366,0.27686536,91322.0,91321.0,0.3541198]
[1731783301611,0.27686536,91322.0,91321.0,0.13329982]
[1731783307747,0.27686536,91322.0,91321.0,0.1112184]
[1731783310843,0.27686536,91322.0,91321.0,0.6112184]
[1731783311050,0.25224453,91322.0,91321.0,0.72297583]
[1731783311268,0.25224453,91322.0,91321.0,0.83203838]
[1731783311473,0.2471628,91322.0,91321.0,0.83203838]
[1731783312553,0.2471628,91322.0,91321.0,0.9297261]
[1731783312991,0.2471628,91322.0,91321.0,0.83203838]
[1731783317562,0.2471628,91322.0,91321.0,0.72028095]
[1731783318234,0.25279172,91322.0,91321.0,0.72028095]
[1731783321472,0.2471628,91322.0,91321.0,0.72028095]
[1731783322383,0.2471628,91322.0,91321.0,0.6112184]
[1731783322821,0.25279172,91322.0,91321.0,0.6112184]
[1731783325312,0.2471628,91322.0,91321.0,0.6112184]
[1731783326190,0.22254163,91322.0,91321.0,0.6112184]
[1731783329546,0.22254163,91322.0,91321.0,0.70899814]
[1731783330016,0.22254163,91322.0,91321.0,0.6112184]
[1731783330965,0.22254163,91322.0,91321.0,0.68457444]
[1731783331664,0.22254163,91322.0,91321.0,0.78235418]
[1731783331886,0.22254163,91322.0,91321.0,0.6112184]
[1731783332134,0.22254163,91322.0,91321.0,0.68457444]
[1731783332370,0.22254163,91322.0,91321.0,0.78235418]
[1731783332603,0.22254163,91322.0,91321.0,0.68457444]
[1731783332827,0.22254163,91322.0,91321.0,0.78242636]
[1731783333088,0.22254163,91322.0,91321.0,0.68457444]
[1731783334732,0.22254163,91322.0,91321.0,0.6112184]
[1731783334970,0.22254163,91322.0,91321.0,0.68457444]
[1731783335196,0.22254163,91322.0,91321.0,0.78245793]
[1731783335408,0.22254163,91322.0,91321.0,0.78245875]
[1731783336098,0.22254163,91322.0,91321.0,0.68457444]
[1731783339299,0.22254163,91322.0,91321.0,0.83124406]
[1731783340040,0.22254163,91322.0,91321.0,0.68457444]
[1731783341209,0.1979205,91322.0,91321.0,0.68457444]
[1731783341438,0.1979205,91322.0,91321.0,0.78249995]
[1731783341881,0.1979205,91322.0,91321.0,0.68457444]
[1731783342123,0.1979205,91322.0,91321.0,0.6112184]
[1731783342409,0.1979205,91322.0,91321.0,0.68457444]
[1731783343787,0.1979205,91322.0,91321.0,0.6842666]
[1731783345880,0.1979205,91322.0,91321.0,0.83093622]
[1731783346136,0.1979205,91322.0,91321.0,0.75758018]
[1731783346361,0.2442205,91322.0,91321.0,0.61091056]
[1731783346584,0.2442205,91322.0,91321.0,0.70885798]
[1731783346787,0.2442205,91322.0,91321.0,0.61091056]
[1731783347003,0.3222205,91322.0,91321.0,0.61091056]
[1731783348289,0.32719423,91322.0,91321.0,0.61091056]
[1731783348512,0.32719423,91322.0,91321.0,0.6842666]
[1731783351311,0.24919423,91322.0,91321.0,0.6842666]
[1731783351719,0.2442205,91322.0,91321.0,0.6842666]
[1731783351968,0.1979205,91322.0,91321.0,0.78223673]
[1731783354329,0.1979205,91322.0,91321.0,0.78220617]
[1731783354573,0.1979205,91322.0,91321.0,0.6842666]
[1731783354779,0.1979205,91322.0,91321.0,0.78220617]
[1731783354985,0.1979205,91322.0,91321.0,0.6842666]
[1731783355680,0.1979205,91322.0,91321.0,0.78220617]
[1731783355904,0.1979205,91322.0,91321.0,0.6842666]
[1731783356369,0.1979205,91322.0,91321.0,0.78220617]
[1731783356557,0.1979205,91322.0,91321.0,0.70885013]
[1731783356812,0.1979205,91322.0,91321.0,0.78220617]
[1731783357018,0.20289139,91322.0,91321.0,0.6842666]
[1731783357668,0.19789139,91322.0,91321.0,0.6842666]
[1731783359839,0.19789139,91322.0,91321.0,0.61091056]
[1731783361729,0.19789139,91322.0,91321.0,0.71997311]
[1731783362170,0.16829814,91322.0,91321.0,0.71997311]
[1731783366513,0.0008581,91324.0,91321.0,0.84909151]
[1731783366725,0.0008577,91334.0,91333.0,0.18284504]
[1731783366954,0.0008577,91334.0,91333.0,0.28072735]
[1731783367182,0.0008577,91334.0,91333.0,0.20737131]
[1731783367401,0.0008577,91334.0,91333.0,0.18284504]
[1731783369068,0.0008577,91334.0,91333.0,0.22738178]
[1731783369302,0.0008577,91334.0,91333.0,0.22957125]
[1731783370480,0.0008577,91334.0,91333.0,0.3386338]
[1731783370684,0.0008577,91334.0,91333.0,0.33644433]
[1731783372029,0.0008577,91334.0,91333.0,0.26308829]
[1731783372247,0.0008577,91334.0,91333.0,0.33644433]
[1731783373753,0.0008577,91334.0,91333.0,0.35791323]
[1731783374845,0.0507577,91334.0,91333.0,0.17549464]
[1731783379187,0.0507577,91334.0,91333.0,0.15402574]
[1731783379633,0.05579967,91334.0,91333.0,0.15402574]
[1731783387021,0.0507577,91334.0,91333.0,0.15402574]
[1731783387899,0.05294833,91334.0,91333.0,0.109489]
[1731783388966,0.0507577,91334.0,91333.0,0.109489]
[1731783389308,0.0557577,91334.0,91333.0,0.109489]
[1731783391443,0.05794833,91334.0,91333.0,0.109489]
[1731783391880,0.05794833,91334.0,91332.0,0.10949]
[1731783392082,0.05794833,91334.0,91329.0,0.26344743]
[1731783392083,0.05794833,91334.0,91333.0,0.109489]
[1731783393845,0.0557577,91334.0,91333.0,0.109489]
[1731783395845,0.0557577,91334.0,91331.0,0.109491]
[1731783396078,0.0557577,91334.0,91333.0,0.109489]
[1731783396305,0.0058577,91334.0,91333.0,0.109489]
[1731783396996,0.0008577,91334.0,91333.0,0.109489]
[1731783397231,0.0058577,91334.0,91333.0,0.109489]
[1731783403718,0.0058577,91334.0,91331.0,0.218983]
[1731783403931,0.0058577,91334.0,91333.0,0.109489]
[1731783407527,0.0008577,91334.0,91333.0,0.109489]
[1731783407733,0.0008577,91334.0,91333.0,0.21855155]
[1731783409468,0.0008577,91334.0,91333.0,0.18284504]
[1731783410988,0.0008577,91334.0,91333.0,0.18503455]
[1731783413674,0.0008581,91337.0,91333.0,0.07554555]
[1731783413897,0.0008581,91337.0,91336.0,0.109485]
[1731783418775,0.0008581,91337.0,91336.0,0.24154755]
[1731783418989,0.0008581,91337.0,91336.0,0.21854755]
[1731783420658,0.0008581,91337.0,91336.0,0.26444755]
[1731783423178,0.0008581,91337.0,91336.0,0.28609506]
[1731783425756,0.5008581,91337.0,91336.0,0.28609506]
[1731783428851,0.47624058,91337.0,91336.0,0.28609506]
[1731783429035,0.47624058,91337.0,91336.0,0.24019506]
[1731783430470,0.47709818,91337.0,91336.0,0.24019506]
[1731783431804,0.47709818,91337.0,91336.0,0.13113251]
[1731783432024,0.47709818,91337.0,91336.0,0.109485]
[1731783432025,0.48209818,91337.0,91336.0,0.109485]
[1731783432261,0.60719818,91337.0,91336.0,0.109485]
[1731783436194,0.60719818,91337.0,91336.0,0.609485]
[1731783438456,0.60719818,91337.0,91336.0,0.5]
[1731783438698,0.71668218,91337.0,91336.0,0.5]
[1731783439351,0.72168218,91337.0,91336.0,0.5]
[1731783441488,0.61219818,91337.0,91336.0,0.5]
[1731783442525,0.72168218,91337.0,91336.0,0.5]
[1731783443626,0.61219818,91337.0,91336.0,0.5]
[1731783444106,0.72168218,91337.0,91336.0,0.5]
[1731783446358,0.72168218,91337.0,91336.0,0.21493164]
[1731783449460,0.83074473,91337.0,91336.0,0.21493164]
[1731783450260,0.83274473,91337.0,91336.0,0.21493164]
[1731783450481,0.83074473,91337.0,91336.0,0.21493164]
[1731783453570,0.83074473,91337.0,91336.0,0.21664684]
[1731783479328,0.92903061,91337.0,91336.0,0.21664684]
[1731783479745,0.83074473,91337.0,91336.0,0.21664684]
[1731783480366,1.22859088,91337.0,91336.0,0.21664684]
[1731783480569,1.47429735,91337.0,91336.0,0.21664684]
[1731783480781,1.30194692,91337.0,91336.0,0.21664684]
[1731783481854,1.33610734,91337.0,91336.0,0.21664684]
[1731783482304,1.30194692,91337.0,91336.0,0.21664684]
[1731783483417,1.33611061,91337.0,91336.0,0.21664684]
[1731783483677,1.44517316,91337.0,91336.0,0.21664684]
[1731783483881,1.50946665,91337.0,91336.0,0.21664684]
[1731783484089,1.43611061,91337.0,91336.0,0.21664684]
[1731783484294,1.80431441,91337.0,91336.0,0.21664684]
[1731783484496,1.80431441,91337.0,91334.0,0.0017152]
[1731783484497,0.277087,91335.0,91334.0,0.0017152]
[1731783484626,0.38834018,91335.0,91334.0,0.0017152]
[1731783484828,0.7489957,91335.0,91334.0,0.0017152]
[1731783485925,0.99465779,91335.0,91334.0,0.0017152]
[1731783486068,0.7489957,91335.0,91334.0,0.0017152]
[1731783488061,0.82235174,91335.0,91334.0,0.0017152]
[1731783488278,1.01882501,91335.0,91334.0,0.0017152]
[1731783488429,1.11882501,91335.0,91334.0,0.0017152]
[1731783488641,0.92235174,91335.0,91334.0,0.0017152]
[1731783490087,0.55950559,91335.0,91334.0,0.0017152]
[1731783490292,0.92210431,91335.0,91334.0,0.0017152]
[1731783492179,0.92010431,91335.0,91334.0,0.0017152]
[1731783492388,0.92210431,91335.0,91334.0,0.0017152]
[1731783494397,0.95618928,91335.0,91334.0,0.0017152]
[1731783494812,1.25074407,91335.0,91334.0,0.0017152]
[1731783495908,0.95618928,91335.0,91334.0,0.0017152]
[1731783496115,1.25073798,91335.0,91334.0,0.0017152]
[1731783496569,0.92210431,91335.0,91334.0,0.0017152]
[1731783497713,0.9561796,91335.0,91334.0,0.0017152]
[1731783497926,0.92210431,91335.0,91334.0,0.0017152]
[1731783499535,0.27515504,91325.0,91324.0,0.0017154]
[1731783499752,0.38640822,91325.0,91324.0,0.0017154]
[1731783499963,0.23856155,91325.0,91324.0,0.0017154]
[1731783500185,0.23075218,91325.0,91324.0,0.0017154]
[1731783500403,0.23575218,91325.0,91324.0,0.0844154]
[1731783501706,0.23575218,91325.0,91324.0,0.0017154]
[1731783504101,0.23575218,91325.0,91324.0,0.00163157]
[1731783510685,0.005,91310.0,91309.0,0.06322154]
[1731783510925,0.005,91310.0,91309.0,0.17273954]
[1731783511143,0.005,91310.0,91309.0,0.109518]
[1731783512230,0.005,91308.0,91282.0,0.03]
[1731783512457,0.005,91305.0,91292.0,0.07335604]
[1731783512700,0.00219063,91304.0,91292.0,0.07335604]
[1731783512911,0.00219063,91304.0,91303.0,0.109525]
[1731783515375,0.11171563,91304.0,91300.0,0.0791]
[1731783515583,0.11171563,91304.0,91292.0,0.0791]
[1731783515584,0.005,91295.0,91292.0,0.0791]
[1731783515789,0.00219063,91294.0,91292.0,0.0791]
[1731783516233,0.00219063,91294.0,91292.0,0.188637]
[1731783516916,0.00219063,91294.0,91292.0,0.0791]
[1731783517136,0.11172663,91294.0,91290.0,0.0017148]
[1731783517570,0.00219063,91294.0,91290.0,0.0017148]
[1731783517818,0.00219063,91294.0,91290.0,0.1112548]
[1731783518673,0.00219063,91294.0,91290.0,0.0017148]
[1731783518875,0.005,91291.0,91290.0,0.0017148]
[1731783519290,0.00719063,91291.0,91290.0,0.0017148]
[1731783520943,0.005,91291.0,91290.0,0.0017148]
[1731783521169,0.005,91291.0,91290.0,0.1112558]
[1731783521398,0.005,91291.0,91290.0,0.0017148]
[1731783522281,0.00719063,91291.0,91290.0,0.0017148]
[1731783524054,0.00719063,91291.0,91290.0,0.1112558]
[1731783524555,0.00719063,91291.0,91290.0,0.0017148]
[1731783527034,0.12125318,91291.0,91290.0,0.0017148]
[1731783527485,0.12125318,91291.0,91290.0,0.1112558]
[1731783527711,0.11406255,91291.0,91290.0,0.1112558]
[1731783528438,0.005,91291.0,91290.0,0.2364558]
[1731783532660,0.005,91291.0,91290.0,0.1905558]
[1731783533980,0.005,91292.0,91291.0,0.109539]
[1731783534222,0.005,91292.0,91291.0,0.18289504]
[1731783536890,0.00719063,91297.0,91296.0,0.134533]
[1731783537123,0.005,91297.0,91296.0,0.134533]
[1731783544407,0.005,91297.0,91296.0,0.025]
[1731783546194,0.114532,91297.0,91296.0,0.025]
[1731783546411,0.005,91297.0,91296.0,0.025]
[1731783546638,0.005858,91297.0,91296.0,0.025]
[1731783546858,0.00804863,91297.0,91296.0,0.025]
[1731783550313,0.00804863,91297.0,91296.0,0.134533]
[1731783550533,0.005858,91297.0,91296.0,0.134533]
[1731783552166,0.005858,91297.0,91296.0,0.20788904]
[1731783552167,0.000858,91297.0,91296.0,0.20788904]
[1731783558025,0.09838856,91314.0,91313.0,0.005]
[1731783558241,0.16495752,91329.0,91324.0,0.1095]
[1731783558476,0.16495752,91329.0,91324.0,0.18285604]
[1731783558938,0.16495752,91339.0,91324.0,0.18285604]
[1731783560313,0.16495752,91339.0,91324.0,0.1095]
[1731783560541,0.38392252,91339.0,91324.0,0.1095]
[1731783560753,0.1103436,91336.0,91324.0,0.1095]
[1731783560981,0.0008576,91336.0,91324.0,0.1095]
[1731783561898,0.0008576,91336.0,91324.0,0.15369953]
[1731783562382,0.1103426,91336.0,91324.0,0.15369953]
[1731783562618,0.0008576,91336.0,91324.0,0.15369953]
[1731783566279,0.1103426,91336.0,91324.0,0.15369953]
[1731783566531,0.0008576,91336.0,91324.0,0.15369953]
[1731783567478,0.1103436,91336.0,91324.0,0.15369953]